bitfinex-derivatives/quotes_BTCF0:USTF0_20241025
["timestamp","ask_amount","ask_price","bid_price","bid_amount"]
[1729823676737,0.06811299,68036.0,68035.0,0.51061569]
[1729823677329,0.06811299,68036.0,68035.0,0.54261569]
[1729823678536,0.14163599,68036.0,68035.0,0.54261569]
[1729823681338,0.14163599,68036.0,68035.0,0.46909169]
[1729823681639,0.14163599,68036.0,68035.0,0.3928]
[1729823683136,0.14163599,68036.0,68035.0,0.49050768]
[1729823688443,0.14163599,68036.0,68035.0,0.49059212]
[1729823688844,0.21792768,68036.0,68035.0,0.49059212]
[1729823689036,0.29421937,68036.0,68035.0,0.49059212]
[1729823690148,0.29421937,68036.0,68035.0,0.3608]
[1729823690444,0.050068,68035.0,68028.0,0.3608]
[1729823690645,0.19171199,68029.0,68028.0,0.3608]
[1729823691040,0.19171199,68029.0,68028.0,0.37879131]
[1729823694144,0.22481914,68029.0,68028.0,0.37879131]
[1729823697951,0.22481914,68029.0,68028.0,0.5946946]
[1729823698253,0.19171199,68029.0,68028.0,0.47728906]
[1729823700758,0.19171199,68029.0,68028.0,0.59469166]
[1729823701158,0.19171199,68029.0,68028.0,0.47728906]
[1729823703661,0.19171199,68029.0,68028.0,0.56519451]
[1729823704953,0.19171199,68029.0,68028.0,0.37879131]
[1729823713166,0.19171199,68029.0,68028.0,0.56522775]
[1729823716561,0.06811299,68029.0,68028.0,0.5508543]
[1729823716765,0.073509,68050.0,68028.0,0.5508543]
[1729823716766,0.09424,68047.0,68036.0,0.073523]
[1729823716962,0.3608,68052.0,68040.0,0.050068]
[1729823716963,0.050068,68044.0,68040.0,0.050068]
[1729823717266,0.14163099,68041.0,68040.0,0.050068]
[1729823717464,0.073519,68040.0,68038.0,0.123589]
[1729823717661,0.06811299,68039.0,68038.0,0.123589]
[1729823717860,0.14163299,68039.0,68038.0,0.123589]
[1729823718062,0.06811299,68039.0,68038.0,0.123589]
[1729823718655,0.19170099,68039.0,68038.0,0.073521]
[1729823719963,0.19170099,68039.0,68038.0,0.09148075]
[1729823721264,0.123589,68038.0,68037.0,0.3608]
[1729823721459,0.19170199,68038.0,68037.0,0.3608]
[1729823721662,0.073525,68034.0,68033.0,0.08793029]
[1729823721866,0.19170599,68034.0,68033.0,0.08793029]
[1729823722263,0.24177399,68034.0,68033.0,0.08793029]
[1729823722666,0.19170599,68034.0,68033.0,0.08793029]
[1729823722971,0.050068,68033.0,68028.0,0.3608]
[1729823723169,0.14164399,68029.0,68028.0,0.3608]
[1729823723564,0.19171199,68029.0,68028.0,0.3608]
[1729823729778,0.19171199,68029.0,68028.0,0.5766149]
[1729823731071,0.24177999,68029.0,68028.0,0.5766149]
[1729823734878,0.24177999,68029.0,68028.0,0.3608]
[1729823735879,0.24177999,68029.0,68028.0,0.57592407]
[1729823737465,0.24177999,68029.0,68028.0,0.45894226]
[1729823738174,0.29184799,68029.0,68028.0,0.45894226]
[1729823738375,0.34191599,68029.0,68028.0,0.09814226]
[1729823738572,0.43615599,68029.0,68028.0,0.09814226]
[1729823739073,0.073532,68028.0,68027.0,0.07339701]
[1729823739478,0.06811299,68028.0,68024.0,0.07339701]
[1729823739684,0.123603,68025.0,68024.0,0.07339701]
[1729823739870,0.050068,68024.0,68019.0,0.08805919]
[1729823740071,0.19172099,68020.0,68019.0,0.08805919]
[1729823740270,0.19172099,68020.0,68019.0,0.09862439]
[1729823742171,0.11818099,68020.0,68015.0,0.14680804]
[1729823742372,0.11818099,68016.0,68015.0,0.14680804]
[1729823743383,0.11818099,68016.0,68015.0,0.073545]
[1729823744878,0.123614,68015.0,68014.0,0.07326304]
[1729823745173,0.19172699,68015.0,68014.0,0.07326304]
[1729823745379,0.19172699,68015.0,68013.0,0.07326304]
[1729823745678,0.14165999,68014.0,68013.0,0.07326304]
[1729823745884,0.14165999,68014.0,68013.0,0.17180287]
[1729823746376,0.14165999,68014.0,68013.0,0.07326304]
[1729823748479,0.14165999,68014.0,68012.0,0.24694804]
[1729823748676,0.050068,68013.0,68012.0,0.24694804]
[1729823748876,0.050068,68013.0,68012.0,0.34549227]
[1729823749184,0.050068,68013.0,68012.0,0.34549229]
[1729823749779,0.123616,68013.0,68012.0,0.34549229]
[1729823749982,0.123616,68013.0,68012.0,0.12333104]
[1729823750182,0.123616,68013.0,68012.0,0.07326304]
[1729823750479,0.19172899,68013.0,68012.0,0.09849102]
[1729823758991,0.14166099,68013.0,68012.0,0.09849102]
[1729823759189,0.19172899,68013.0,68012.0,0.09849102]
[1729823763405,0.19172899,68013.0,68012.0,0.18655021]
[1729823764199,0.19172899,68013.0,68012.0,0.09849102]
[1729823766307,0.19172899,68013.0,68012.0,0.18655021]
[1729823766802,0.14166099,68013.0,68012.0,0.18655021]
[1729823767001,0.19172899,68013.0,68012.0,0.18655021]
[1729823767400,0.19172899,68013.0,68012.0,0.09849102]
[1729823768100,0.06811299,68013.0,68012.0,0.14855902]
[1729823768298,0.06811299,68013.0,68012.0,0.38907402]
[1729823769300,0.06811299,68013.0,68012.0,0.28893802]
[1729823769800,0.19172899,68013.0,68012.0,0.21538902]
[1729823771892,0.19172899,68013.0,68012.0,0.21497261]
[1729823772297,0.19172899,68013.0,68012.0,0.09807316]
[1729823772897,0.19172899,68013.0,68012.0,0.18611563]
[1729823773299,0.19172899,68013.0,68012.0,0.18611632]
[1729823774107,0.19172899,68013.0,68012.0,0.18611333]
[1729823774298,0.19172899,68013.0,68012.0,0.09807316]
[1729823775007,0.19172899,68013.0,68012.0,0.18611407]
[1729823777401,0.19172899,68013.0,68012.0,0.09807316]
[1729823778303,0.19172899,68013.0,68012.0,0.18611407]
[1729823778497,0.19172899,68013.0,68012.0,0.09807316]
[1729823780399,0.19172899,68013.0,68012.0,0.21501836]
[1729823784309,0.14166099,68013.0,68012.0,0.21501836]
[1729823784613,0.19172899,68013.0,68012.0,0.21501836]
[1729823785315,0.123616,68013.0,68012.0,0.21501836]
[1729823785516,0.19172899,68013.0,68012.0,0.21501836]
[1729823786113,0.19172899,68013.0,68012.0,0.21525318]
[1729823786614,0.14166099,68013.0,68012.0,0.21525318]
[1729823786815,0.19172899,68013.0,68012.0,0.21525318]
[1729823790213,0.073541,68020.0,68016.0,0.073545]
[1729823790417,0.073541,68020.0,68017.0,0.34828918]
[1729823790721,0.073541,68020.0,68018.0,0.28879518]
[1729823790903,0.131036,68029.0,68017.0,0.3937]
[1729823790904,0.06811299,68018.0,68017.0,0.3937]
[1729823791103,0.06811299,68018.0,68017.0,0.70868676]
[1729823791915,0.06811299,68018.0,68017.0,0.78223076]
[1729823792415,0.050068,68022.0,68019.0,0.073541]
[1729823792615,0.06811299,68021.0,68020.0,0.09802683]
[1729823793007,0.06811299,68021.0,68020.0,0.21484709]
[1729823793210,0.11818099,68021.0,68020.0,0.09802683]
[1729823793512,0.11818099,68021.0,68020.0,0.17156683]
[1729823794506,0.06811299,68021.0,68020.0,0.17156683]
[1729823795509,0.06811299,68021.0,68020.0,0.07354]
[1729823799616,0.06811299,68021.0,68020.0,0.123608]
[1729823799807,0.06811299,68021.0,68020.0,0.173676]
[1729823800716,0.06811299,68021.0,68020.0,0.2176224]
[1729823802504,0.06811299,68021.0,68020.0,0.38841833]
[1729823805009,0.06811299,68021.0,68020.0,0.26481033]
[1729823805210,0.14165199,68021.0,68020.0,0.0979681]
[1729823805411,0.123609,68020.0,68017.0,0.4118983]
[1729823805715,0.050068,68019.0,68018.0,0.21472624]
[1729823808316,0.100136,68019.0,68018.0,0.21472624]
[1729823810505,0.100136,68019.0,68017.0,0.5863373]
[1729823810716,0.100136,68019.0,68017.0,0.5855773]
[1729823812318,0.100136,68019.0,68017.0,0.64417675]
[1729823812519,0.100136,68019.0,68017.0,0.5855773]
[1729823812820,0.100136,68019.0,68017.0,0.64417675]
[1729823813519,0.050068,68019.0,68017.0,0.64417675]
[1729823813710,0.050068,68019.0,68017.0,0.57063375]
[1729823813910,0.050068,68024.0,68017.0,0.57063375]
[1729823814119,0.06811299,68020.0,68019.0,0.073541]
[1729823814414,0.06811299,68020.0,68019.0,0.123609]
[1729823815116,0.06811299,68020.0,68019.0,0.073541]
[1729823815310,0.06811299,68020.0,68019.0,0.173677]
[1729823817518,0.06811299,68020.0,68019.0,0.38802628]
[1729823819523,0.06811299,68020.0,68019.0,0.38812258]
[1729823824719,0.14165299,68020.0,68019.0,0.21444558]
[1729823825719,0.14165299,68020.0,68019.0,0.26451358]
[1729823826633,0.14165299,68020.0,68019.0,0.21444558]
[1729823827222,0.07354,68020.0,68019.0,0.21444558]
[1729823832135,0.14165299,68020.0,68019.0,0.21444558]
[1729823832335,0.14165299,68020.0,68019.0,0.21356096]
[1729823832537,0.073542,68019.0,68017.0,0.3789983]
[1729823832736,0.16824899,68018.0,68017.0,0.3789983]
[1729823833244,0.24179199,68018.0,68017.0,0.3789983]
[1729823838435,0.24179199,68018.0,68017.0,0.0181983]
[1729823838639,0.24179199,68018.0,68016.0,0.485172]
[1729823838838,0.06811299,68017.0,68016.0,0.484412]
[1729823839542,0.0309,68029.0,68019.0,0.073541]
[1729823839543,0.073536,68024.0,68019.0,0.073541]
[1729823839846,0.073536,68025.0,68022.0,0.05866255]
[1729823840046,0.06811299,68023.0,68022.0,0.05866255]
[1729823840241,0.06811299,68023.0,68022.0,0.050068]
[1729823840439,0.06811299,68023.0,68022.0,0.35920858]
[1729823841045,0.06811299,68023.0,68022.0,0.27121417]
[1729823844338,0.06811299,68023.0,68022.0,0.2711855]
[1729823844551,0.06811299,68023.0,68022.0,0.35916174]
[1729823845339,0.06811299,68023.0,68022.0,0.74823321]
[1729823847051,0.14164999,68023.0,68022.0,0.74823321]
[1729823847551,0.14164999,68023.0,68022.0,0.460936]
[1729823848952,0.14164999,68023.0,68022.0,0.410868]
[1729823851647,0.06811299,68023.0,68022.0,0.410868]
[1729823851855,0.06811299,68023.0,68022.0,0.484406]
[1729823852550,0.06811299,68023.0,68022.0,0.5283938]
[1729823853250,0.3608,68045.0,68022.0,1.01069441]
[1729823853251,0.073523,68036.0,68022.0,1.01069441]
[1729823853551,0.07352,68039.0,68035.0,0.17366]
[1729823853752,0.07352,68039.0,68038.0,0.100136]
[1729823854153,0.14163299,68039.0,68038.0,0.100136]
[1729823855550,0.14163299,68039.0,68038.0,0.21517489]
[1729823855759,0.14163299,68039.0,68038.0,0.28869589]
[1729823855960,0.14163299,68039.0,68038.0,0.28868011]
[1729823860357,0.14163299,68039.0,68038.0,0.36183133]
[1729823860758,0.14163299,68039.0,68038.0,0.3617398]
[1729823862366,0.14163299,68039.0,68038.0,0.26477713]
[1729823862570,0.26274221,68039.0,68038.0,0.19162591]
[1729823862865,0.26274221,68039.0,68038.0,0.29176191]
[1729823862866,0.14325285,68039.0,68038.0,0.29176191]
[1729823863067,0.03477012,68039.0,68038.0,0.19162591]
[1729823865371,0.07600582,68044.0,68038.0,0.11810491]
[1729823865568,0.06811299,68041.0,68040.0,0.434319]
[1729823865763,0.06811299,68041.0,68040.0,0.484387]
[1729823865969,0.14411881,68041.0,68040.0,0.484387]
[1729823866767,0.14411881,68041.0,68040.0,0.534455]
[1729823870173,0.14423643,68041.0,68040.0,0.534455]
[1729823870562,0.06811299,68041.0,68040.0,0.63086761]
[1729823873773,0.06811299,68041.0,68040.0,0.76891122]
[1729823873970,0.06811299,68041.0,68040.0,0.81897922]
[1729823874167,0.06811299,68041.0,68040.0,0.71884322]
[1729823874371,0.06811299,68041.0,68040.0,0.81897922]
[1729823874568,0.06811299,68041.0,68040.0,0.71884322]
[1729823874973,0.06811299,68041.0,68040.0,0.71882021]
[1729823875170,0.06811299,68041.0,68040.0,0.81895621]
[1729823876281,0.073512,68047.0,68044.0,0.073514]
[1729823876481,0.06811299,68045.0,68044.0,0.073514]
[1729823876779,0.06811299,68045.0,68044.0,0.123582]
[1729823877187,0.06811299,68045.0,68044.0,0.17365]
[1729823877486,0.06811299,68045.0,68044.0,0.24670439]
[1729823877682,0.10324997,68045.0,68044.0,0.123582]
[1729823880286,0.10324997,68045.0,68044.0,0.09119706]
[1729823880585,0.17676297,68045.0,68044.0,0.01768306]
[1729823880792,0.17676297,68045.0,68043.0,0.100136]
[1729823880981,0.17676397,68044.0,68043.0,0.100136]
[1729823881391,0.17676397,68044.0,68041.0,0.194096]
[1729823881683,0.06811299,68042.0,68041.0,0.194096]
[1729823881881,0.10324997,68042.0,68041.0,0.194096]
[1729823883378,0.10324997,68042.0,68041.0,0.1186974]
[1729823883585,0.17676697,68042.0,68041.0,0.1186974]
[1729823884987,0.10324997,68042.0,68041.0,0.1922154]
[1729823885687,0.06811299,68042.0,68041.0,0.1922154]
[1729823888897,0.06811299,68042.0,68041.0,0.2861754]
[1729823890492,0.06811299,68042.0,68041.0,0.35922979]
[1729823890986,0.06811299,68042.0,68041.0,0.45598747]
[1729823891390,0.06811299,68042.0,68041.0,0.38293308]
[1729823892594,0.06811299,68042.0,68041.0,0.38296319]
[1729823892998,0.073512,68046.0,68041.0,0.38296319]
[1729823892999,0.073512,68046.0,68041.0,0.30944519]
[1729823893297,0.073512,68046.0,68045.0,0.100136]
[1729823898295,0.14162499,68046.0,68045.0,0.100136]
[1729823898498,0.14162499,68046.0,68045.0,0.17343201]
[1729823898700,0.14162499,68046.0,68045.0,0.173649]
[1729823899403,0.14162499,68046.0,68045.0,0.24694501]
[1729823900908,0.2649399,68046.0,68045.0,0.173649]
[1729823901195,0.19682691,68046.0,68045.0,0.173649]
[1729823901392,0.2649399,68046.0,68045.0,0.173649]
[1729823902907,0.21813333,68046.0,68045.0,0.173649]
[1729823903898,0.21813333,68046.0,68045.0,0.100136]
[1729823904902,0.14162499,68046.0,68045.0,0.100136]
[1729823905905,0.18271938,68046.0,68045.0,0.100136]
[1729823906105,0.21811363,68046.0,68045.0,0.100136]
[1729823907105,0.073524,68035.0,68034.0,0.073525]
[1729823907302,0.11818099,68034.0,68033.0,0.37921283]
[1729823907501,0.19170599,68034.0,68033.0,0.37921283]
[1729823908199,0.14163799,68034.0,68033.0,0.37921283]
[1729823908400,0.19170599,68034.0,68033.0,0.37921283]
[1729823909808,0.24177399,68034.0,68033.0,0.37921283]
[1729823910799,0.24177399,68034.0,68033.0,0.47934883]
[1729823911197,0.19170599,68034.0,68033.0,0.47934883]
[1729823913202,0.14163799,68034.0,68033.0,0.47934883]
[1729823915615,0.14163799,68034.0,68033.0,0.66414365]
[1729823916402,0.19170599,68034.0,68033.0,0.66414365]
[1729823917014,0.19170599,68034.0,68033.0,0.56723036]
[1729823918716,0.24177399,68034.0,68033.0,0.56723036]
[1729823918915,0.24177399,68034.0,68033.0,0.44868153]
[1729823920814,0.24177399,68034.0,68033.0,0.3608]
[1729823921323,0.24177399,68034.0,68033.0,0.40470396]
[1729823923121,0.24177399,68034.0,68033.0,0.3608]
[1729823924117,0.24177399,68034.0,68033.0,0.45752836]
[1729823927626,0.52904899,68034.0,68028.0,0.100136]
[1729823927828,0.434325,68034.0,68033.0,0.07318516]
[1729823928127,0.434325,68034.0,68028.0,0.20591529]
[1729823928128,0.06811299,68029.0,68028.0,0.20591529]
[1729823928421,0.11818099,68029.0,68028.0,0.30283429]
[1729823928728,0.19171199,68029.0,68028.0,0.30283429]
[1729823929322,0.19171199,68029.0,68028.0,0.21495276]
[1729823932023,0.19171199,68029.0,68028.0,0.11803376]
[1729823932238,0.11818099,68029.0,68028.0,0.19156576]
[1729823932521,0.06811299,68029.0,68028.0,0.19156576]
[1729823933327,0.14164399,68029.0,68028.0,0.11803376]
[1729823933923,0.19171199,68029.0,68028.0,0.11803376]
[1729823934623,0.19171199,68029.0,68028.0,0.17661524]
[1729823938334,0.19171199,68029.0,68028.0,0.11803376]
[1729823939035,0.19171199,68029.0,68028.0,0.33073451]
[1729823939240,0.19171199,68029.0,68028.0,0.40426651]
[1729823939537,0.19171199,68029.0,68028.0,0.40431572]
[1729823941036,0.19171199,68029.0,68028.0,0.26281796]
[1729823941232,0.19171199,68029.0,68028.0,0.09705916]
[1729823941233,0.24770055,68029.0,68028.0,0.09705916]
[1729823941432,0.28070055,68029.0,68028.0,0.09705916]
[1729823942638,0.34290055,68029.0,68028.0,0.09705916]
[1729823943033,0.34290055,68029.0,68028.0,0.09710807]
[1729823945135,0.36112723,68029.0,68028.0,0.09710807]
[1729823946139,0.36112723,68029.0,68028.0,0.1703982]
[1729823946831,0.36112723,68029.0,68028.0,0.07329013]
[1729823947031,0.073534,68026.0,68025.0,0.07328336]
[1729823947231,0.484402,68026.0,68025.0,0.07328336]
[1729823947445,0.123603,68025.0,68024.0,0.07328336]
[1729823947637,0.123603,68025.0,68018.0,0.16154383]
[1729823947638,0.123604,68024.0,68023.0,0.07328336]
[1729823947846,0.123604,68024.0,68023.0,0.17041308]
[1729823948145,0.14756955,68024.0,68023.0,0.17041308]
[1729823948735,0.14756955,68024.0,68023.0,0.07328336]
[1729823949536,0.123605,68023.0,68022.0,0.07328336]
[1729823949740,0.14757055,68023.0,68022.0,0.17039294]
[1729823950245,0.14757055,68023.0,68022.0,0.07328336]
[1729823951446,0.07354,68020.0,68018.0,0.08800183]
[1729823951643,0.14757355,68020.0,68019.0,0.47619631]
[1729823951948,0.14757355,68020.0,68019.0,0.4579205]
[1729823953638,0.14757355,68020.0,68019.0,0.0971205]
[1729823953839,0.14757355,68020.0,68015.0,0.08800183]
[1729823953840,0.050068,68019.0,68015.0,0.08800183]
[1729823954045,0.073535,68025.0,68017.0,0.05859081]
[1729823954352,0.073539,68021.0,68020.0,0.04394311]
[1729823954546,0.123608,68020.0,68019.0,0.04394311]
[1729823954759,0.07354,68020.0,68019.0,0.04394311]
[1729823954944,0.09750555,68020.0,68019.0,0.04394311]
[1729823955142,0.14757355,68020.0,68019.0,0.04394311]
[1729823956860,0.14757355,68020.0,68018.0,0.04394311]
[1729823956861,0.123609,68019.0,68018.0,0.04394311]
[1729823957343,0.14757455,68019.0,68018.0,0.04394311]
[1729823961349,0.073544,68017.0,68016.0,0.07323835]
[1729823961551,0.123612,68017.0,68016.0,0.17063989]
[1729823961847,0.14757755,68017.0,68016.0,0.17063989]
[1729823962047,0.14757755,68017.0,68016.0,0.17065145]
[1729823962957,0.14757755,68017.0,68016.0,0.17070147]
[1729823964258,0.14757755,68017.0,68016.0,0.09746312]
[1729823966761,0.123613,68016.0,68015.0,0.01846587]
[1729823966963,0.14757855,68016.0,68015.0,0.09751215]
[1729823969253,0.14757855,68016.0,68015.0,0.18551398]
[1729823971566,0.14757855,68016.0,68015.0,0.09751215]
[1729823975266,0.14757855,68016.0,68015.0,0.21389451]
[1729823976369,0.14757855,68016.0,68015.0,0.21389659]
[1729823976570,0.14757855,68016.0,68015.0,0.21402553]
[1729823978468,0.14757855,68016.0,68015.0,0.09764109]
[1729823981270,0.14757855,68016.0,68015.0,0.09765347]
[1729823983565,0.19764655,68016.0,68015.0,0.09765347]
[1729823984172,0.14757855,68016.0,68015.0,0.09765347]
[1729823984673,0.19764655,68016.0,68015.0,0.09765347]
[1729823984862,0.14757855,68016.0,68015.0,0.09765347]
[1729823985067,0.19764655,68016.0,68015.0,0.09765347]
[1729823985260,0.14757855,68016.0,68015.0,0.09765347]
[1729823985465,0.19764655,68016.0,68015.0,0.21420362]
[1729823985665,0.14757855,68016.0,68015.0,0.21420362]
[1729824004083,0.073547,68014.0,68013.0,0.37854493]
[1729824004379,0.09751255,68014.0,68013.0,0.59082737]
[1729824006485,0.09751255,68014.0,68013.0,0.23002737]
[1729824007300,0.0952,68029.0,68013.0,0.23002737]
[1729824007585,0.52813,68030.0,68019.0,0.3608]
[1729824007586,0.02396555,68024.0,68019.0,0.3608]
[1729824007787,0.09749955,68026.0,68023.0,0.050068]
[1729824007984,0.09749955,68026.0,68025.0,0.08810609]
[1729824008178,0.09749955,68026.0,68025.0,0.25848696]
[1729824008482,0.09749955,68026.0,68025.0,0.17038087]
[1729824008680,0.09749955,68026.0,68025.0,0.16987603]
[1729824008882,0.09749955,68026.0,68025.0,0.21994403]
[1729824009185,0.09749955,68026.0,68025.0,0.30805012]
[1729824009488,0.073528,68032.0,68030.0,0.073529]
[1729824009788,0.073528,68032.0,68031.0,0.19647703]
[1729824009982,0.073528,68032.0,68031.0,0.28446755]
[1729824010297,0.14756155,68032.0,68031.0,0.09634103]
[1729824010480,0.19762955,68032.0,68031.0,0.09634103]
[1729824013280,0.050068,68031.0,68029.0,0.07325314]
[1729824013484,0.050068,68029.0,68028.0,0.07325314]
[1729824013789,0.02396555,68026.0,68025.0,0.09142974]
[1729824013992,0.14756755,68026.0,68025.0,0.16952739]
[1729824014180,0.14756755,68026.0,68025.0,0.07325314]
[1729824014594,0.123603,68025.0,68024.0,0.0324]
[1729824014782,0.123603,68025.0,68024.0,0.12864897]
[1729824015678,0.123603,68025.0,68024.0,0.14687362]
[1729824016485,0.123603,68025.0,68024.0,0.22013572]
[1729824016988,0.123603,68025.0,68024.0,0.14687362]
[1729824017192,0.123603,68025.0,68024.0,0.22013891]
[1729824017978,0.123603,68025.0,68024.0,0.22010235]
[1729824018583,0.123603,68025.0,68024.0,0.22010133]
[1729824018786,0.123603,68025.0,68024.0,0.22010124]
[1729824019298,0.14756855,68025.0,68024.0,0.14683706]
[1729824020493,0.14756855,68025.0,68024.0,0.18769993]
[1729824021597,0.14756855,68025.0,68024.0,0.01822465]
[1729824021788,0.073538,68022.0,68021.0,0.04395849]
[1729824021996,0.14757155,68022.0,68021.0,0.04395849]
[1729824022694,0.19763955,68022.0,68021.0,0.04395849]
[1729824027099,0.073539,68021.0,68020.0,0.05861132]
[1729824027598,0.09750455,68021.0,68020.0,0.05861132]
[1729824029593,0.09750455,68021.0,68020.0,0.09622965]
[1729824032303,0.073541,68019.0,68018.0,0.37851033]
[1729824032500,0.14757455,68019.0,68018.0,0.47481739]
[1729824033095,0.123609,68019.0,68018.0,0.47481739]
[1729824033406,0.14757455,68019.0,68018.0,0.47481739]
[1729824034505,0.14757455,68019.0,68018.0,0.56277089]
[1729824035410,0.14757455,68019.0,68018.0,0.47481739]
[1729824035908,0.14757455,68019.0,68018.0,0.4749165]
[1729824042305,0.14757455,68019.0,68018.0,0.58991867]
[1729824043604,0.14757455,68019.0,68018.0,0.4749165]
[1729824046504,0.14757455,68019.0,68018.0,0.57145444]
[1729824046704,0.14757455,68019.0,68018.0,0.47504827]
[1729824049315,0.21590201,68019.0,68018.0,0.45733794]
[1729824049518,0.21590201,68019.0,68018.0,0.09653794]
[1729824050317,0.16583401,68019.0,68018.0,0.09653794]
[1729824050518,0.21590201,68019.0,68018.0,0.09653794]
[1729824050914,0.16583401,68019.0,68018.0,0.16995993]
[1729824051114,0.16583401,68019.0,68018.0,0.09653794]
[1729824051722,0.21590201,68019.0,68018.0,0.09653794]
[1729824052519,0.21590201,68019.0,68018.0,0.16996993]
[1729824053821,0.16583401,68019.0,68018.0,0.16996993]
[1729824054122,0.16583401,68019.0,68018.0,0.09653794]
[1729824054623,0.16583401,68019.0,68018.0,0.16997011]
[1729824055217,0.16583401,68019.0,68018.0,0.09653794]
[1729824055620,0.16583401,68019.0,68018.0,0.16996911]
[1729824056008,0.16583401,68019.0,68018.0,0.16914688]
[1729824056210,0.16583401,68019.0,68018.0,0.09571571]
[1729824056613,0.16583401,68019.0,68018.0,0.16914343]
[1729824058109,0.14757455,68019.0,68018.0,0.16914343]
[1729824059020,0.14757455,68019.0,68018.0,0.09571571]
[1729824060522,0.07403355,68019.0,68015.0,0.08809923]
[1729824060722,0.073544,68017.0,68016.0,0.09466043]
[1729824061016,0.09750955,68017.0,68016.0,0.16820543]
[1729824061226,0.3608,68023.0,68019.0,0.073541]
[1729824061227,0.073541,68020.0,68019.0,0.073541]
[1729824061410,0.073541,68020.0,68019.0,0.21826943]
[1729824062217,0.09750655,68020.0,68019.0,0.26833743]
[1729824063120,0.09750655,68020.0,68019.0,0.35643666]
[1729824063422,0.09750655,68020.0,68019.0,0.26833743]
[1729824064215,0.09750655,68020.0,68019.0,0.35644489]
[1729824064516,0.09750655,68020.0,68019.0,0.38095052]
[1729824064722,0.09750655,68020.0,68019.0,0.38096071]
[1729824067513,0.09750655,68020.0,68019.0,0.33089271]
[1729824067713,0.09750655,68020.0,68019.0,0.29865824]
[1729824068512,0.09750655,68020.0,68019.0,0.29861127]
[1729824069217,0.073532,68028.0,68026.0,0.073533]
[1729824069423,0.073532,68028.0,68027.0,0.25659643]
[1729824069620,0.1236,68028.0,68027.0,0.20652843]
[1729824069827,0.14756555,68028.0,68027.0,0.24453019]
[1729824070026,0.14756555,68028.0,68027.0,0.31806319]
[1729824070820,0.073523,68037.0,68032.0,0.073527]
[1729824071020,0.07352,68039.0,68038.0,0.100136]
[1729824071222,0.09748555,68039.0,68038.0,0.19397699]
[1729824071429,0.09748555,68039.0,68038.0,0.100136]
[1729824071629,0.09748555,68039.0,68038.0,0.20461673]
[1729824072126,0.09748555,68039.0,68038.0,0.131336]
[1729824072331,0.09748555,68039.0,68038.0,0.20461673]
[1729824072629,0.09748555,68039.0,68038.0,0.131336]
[1729824072824,0.09748555,68039.0,68038.0,0.0312]
[1729824072825,0.14755355,68039.0,68038.0,0.0312]
[1729824073025,0.19762155,68039.0,68038.0,0.0312]
[1729824075932,0.19762155,68039.0,68038.0,0.131336]
[1729824076932,0.050068,68043.0,68038.0,0.131336]
[1729824077233,0.14755055,68042.0,68040.0,0.100136]
[1729824078235,0.073513,68046.0,68041.0,0.073518]
[1729824078425,0.050068,68042.0,68041.0,0.073518]
[1729824078828,0.123584,68043.0,68041.0,0.073518]
[1729824079033,0.123584,68043.0,68040.0,0.100136]
[1729824079034,0.173646,68048.0,68040.0,0.100136]
[1729824079233,0.173646,68048.0,68039.0,0.48658]
[1729824079234,0.073511,68047.0,68045.0,0.100136]
[1729824079432,0.050068,68046.0,68045.0,0.100136]
[1729824079729,0.14754555,68046.0,68045.0,0.100136]
[1729824081137,0.09747755,68046.0,68045.0,0.100136]
[1729824082636,0.073512,68046.0,68045.0,0.100136]
[1729824082825,0.3608,68051.0,68045.0,0.100136]
[1729824083030,0.02396555,68048.0,68046.0,0.073511]
[1729824083233,0.02396555,68048.0,68047.0,0.050068]
[1729824083831,0.02396555,68048.0,68047.0,0.100136]
[1729824086645,0.09747555,68048.0,68047.0,0.118364]
[1729824087841,0.09747555,68048.0,68047.0,0.191875]
[1729824088342,0.14754355,68048.0,68047.0,0.068296]
[1729824088544,0.14754355,68048.0,68047.0,0.018228]
[1729824088739,0.050068,68047.0,68045.0,0.050068]
[1729824089040,0.073512,68046.0,68045.0,0.050068]
[1729824089857,0.11231765,68046.0,68045.0,0.050068]
[1729824090140,0.11231765,68046.0,68045.0,0.06784828]
[1729824091742,0.073513,68045.0,68044.0,0.050068]
[1729824091944,0.11231865,68045.0,68044.0,0.050068]
[1729824092945,0.11235293,68045.0,68044.0,0.06833769]
[1729824095138,0.11235293,68045.0,68044.0,0.01826969]
[1729824095346,0.11235293,68045.0,68039.0,0.39374]
[1729824095347,0.050068,68044.0,68039.0,0.586636]
[1729824095556,0.03883993,68043.0,68040.0,0.073518]
[1729824095850,0.03883993,68042.0,68040.0,0.073518]
[1729824096061,0.03883993,68041.0,68040.0,0.073518]
[1729824097061,0.073516,68043.0,68040.0,0.16698994]
[1729824097373,0.073516,68043.0,68041.0,0.09347194]
[1729824097652,0.073516,68043.0,68042.0,0.09347194]
[1729824098147,0.09748155,68043.0,68042.0,0.09347194]
[1729824098347,0.13068155,68043.0,68042.0,0.16665045]
[1729824098548,0.13068155,68043.0,68042.0,0.09366155]
[1729824100742,0.13068155,68043.0,68042.0,0.16695918]
[1729824100942,0.13068155,68043.0,68042.0,0.07329763]
[1729824101142,0.073517,68042.0,68041.0,0.07329763]
[1729824101347,0.14755055,68042.0,68041.0,0.16724788]
[1729824101547,0.14755055,68042.0,68041.0,0.09395025]
[1729824102950,0.14755055,68042.0,68041.0,0.16727799]
[1729824103151,0.14755055,68042.0,68041.0,0.09395025]
[1729824103352,0.19761855,68042.0,68041.0,0.16732583]
[1729824103549,0.073518,68041.0,68040.0,0.07332885]
[1729824103754,0.073518,68041.0,68039.0,0.43412885]
[1729824103755,0.14755255,68040.0,68039.0,0.43412885]
[1729824103955,0.14755255,68040.0,68039.0,0.52819531]
[1729824104160,0.14755255,68040.0,68039.0,0.43412885]
[1729824104358,0.14755255,68040.0,68039.0,0.52820176]
[1729824104656,0.14755255,68040.0,68039.0,0.43412885]
[1729824104865,0.073521,68038.0,68037.0,0.07332885]
[1729824105043,0.123589,68038.0,68037.0,0.16752734]
[1729824105248,0.12359,68037.0,68036.0,0.07332885]
[1729824105552,0.48439,68037.0,68036.0,0.16758211]
[1729824105753,0.073524,68035.0,68034.0,0.07334015]
[1729824105946,0.123592,68035.0,68034.0,0.16769073]
[1729824106143,0.14755755,68035.0,68034.0,0.09435058]
[1729824106546,0.14755755,68035.0,68034.0,0.16768417]
[1729824107152,0.14755755,68035.0,68034.0,0.09435058]
[1729824107556,0.14755755,68035.0,68034.0,0.16767376]
[1729824108555,0.14755755,68035.0,68034.0,0.16758052]
[1729824108760,0.14755755,68035.0,68034.0,0.07332318]
[1729824109665,0.14755755,68035.0,68033.0,0.07332318]
[1729824109666,0.123593,68034.0,68033.0,0.07332318]
[1729824109855,0.14755855,68034.0,68033.0,0.16756458]
[1729824110354,0.14755855,68034.0,68033.0,0.07332318]